bitfinex/quotes_SOLUSD_20260302
["timestamp","ask_amount","ask_price","bid_price","bid_amount"]
[1772470481130,3.54736879,89.429,89.389,3.49114117]
[1772470481817,9.15559605,89.42,89.39,11.18693366]
[1772470482022,3.54736879,89.418,89.379,11.18831045]
[1772470482225,9.15559605,89.41,89.379,11.18831045]
[1772470483221,11.18455636,89.409,89.373,27.97261198]
[1772470483929,14.73192515,89.409,89.373,27.97261198]
[1772470484429,9.15559605,89.4,89.37,11.18943717]
[1772470484617,9.15559605,89.4,89.37,39.16303009]
[1772470484809,3.54736879,89.399,89.37,39.16303009]
[1772470485211,3.54736879,89.396,89.359,11.19081457]
[1772470485434,3.54736879,89.396,89.359,39.16785101]
[1772470485608,3.54736879,89.396,89.359,42.65899218]
[1772470485809,3.54736879,89.389,89.359,11.19081457]
[1772470486006,1.67381577,89.369,89.325,3.49114117]
[1772470486212,9.15559605,89.36,89.325,3.49114117]
[1772470486611,1.67381577,89.369,89.325,3.49114117]
[1772470486817,9.15559605,89.37,89.325,3.49114117]
[1772470487530,10.82941182,89.38,89.332,0.28432314]
[1772470487842,10.82941182,89.38,89.341,3.27816767]
[1772470488012,27.96502824,89.398,89.343,3.27816767]
[1772470488013,11.18727614,89.388,89.343,3.27816767]
[1772470488216,9.15559605,89.39,89.343,3.27816767]
[1772470488522,9.15559605,89.39,89.351,3.27816767]
[1772470488753,9.15559605,89.4,89.353,3.27816767]
[1772470489037,9.15559605,89.4,89.361,3.27816767]
[1772470489207,11.18543209,89.402,89.361,3.27816767]
[1772470489411,11.18580744,89.399,89.362,11.19043888]
[1772470489618,9.15559605,89.4,89.363,3.27816767]
[1772470489818,11.18580744,89.399,89.363,3.27816767]
[1772470490221,20.34138062,89.4,89.363,3.27816767]
[1772470492136,10.83353764,89.39,89.353,11.19156603]
[1772470492631,9.15559605,89.37,89.337,11.19357041]
[1772470492829,9.15559605,89.37,89.338,3.27816767]
[1772470493037,1.67794159,89.379,89.338,3.27816767]
[1772470494244,11.18956237,89.369,89.339,11.19331982]
[1772470495227,1.67784697,89.359,89.328,11.19469819]
[1772470495432,1.67784697,89.359,89.323,11.1952438]
[1772470495727,9.15559605,89.35,89.323,11.1952438]
[1772470496145,9.15559605,89.35,89.32,9.47322327]
[1772470496439,9.15559605,89.37,89.322,3.27816767]
[1772470496640,9.15559605,89.36,89.322,3.27816767]
[1772470496842,1.67781616,89.349,89.32,9.47322327]
[1772470497029,1.67781616,89.349,89.321,11.1955755]
[1772470497231,9.15559605,89.35,89.321,11.1955755]
[1772470497448,1.6777857,89.36,89.322,3.27816767]
[1772470497624,9.15559605,89.37,89.322,3.27816767]
[1772470497947,9.15559605,89.36,89.322,3.27816767]
[1772470498149,1.67775558,89.375,89.32,9.47322327]
[1772470498440,9.15559605,89.35,89.321,11.1955755]
[1772470498624,9.16918563,89.35,89.321,11.1955755]
[1772470498820,1.67775558,89.339,89.31,0.2]
[1772470499025,10.84691145,89.33,89.31,0.2]
[1772470499435,1.67772582,89.33,89.31,0.2]
[1772470499636,10.84691145,89.34,89.31,0.2]
[1772470499945,10.84691145,89.34,89.311,11.19682905]
[1772470500147,1.67772582,89.34,89.311,11.19682905]
[1772470500346,1.47769639,89.329,89.29,0.2]
[1772470500537,1.47769639,89.32,89.291,11.19933699]
[1772470500850,11.1919418,89.35,89.293,3.27816767]
[1772470501146,11.1919418,89.35,89.291,39.19767948]
[1772470501147,9.16918563,89.34,89.311,3.27816767]
[1772470501442,11.19136788,89.355,89.311,3.27816767]
[1772470501642,9.16918563,89.36,89.321,3.27816767]
[1772470501845,9.16918563,89.35,89.321,3.27816767]
[1772470502149,9.16918563,89.34,89.311,3.27816767]
[1772470502322,39.16785101,89.359,89.29,0.2]
[1772470502323,9.16918563,89.32,89.29,0.2]
[1772470502524,1.27763855,89.309,89.281,3.69383402]
[1772470502729,9.16918563,89.3,89.275,11.20126714]
[1772470502941,9.16918563,89.3,89.272,3.27816767]
[1772470503123,9.16918563,89.3,89.273,3.27816767]
[1772470503323,9.16918563,89.31,89.273,3.27816767]
[1772470503851,9.16918563,89.3,89.27,0.2]
[1772470504230,1.27761013,89.309,89.272,3.27816767]
[1772470504739,39.19021811,89.308,89.271,11.20184606]
[1772470505040,9.16918563,89.3,89.272,3.27816767]
[1772470505446,39.19021811,89.308,89.262,0.2743145]
[1772470505447,1.27755426,89.289,89.262,0.2743145]
[1772470505751,9.16918563,89.27,89.232,3.27816767]
[1772470506132,39.19021811,89.308,89.26,9.16918563]
[1772470506323,9.16918563,89.3,89.261,3.27816767]
[1772470506529,9.16918563,89.31,89.271,3.27816767]
[1772470506846,9.16918563,89.3,89.251,3.27816767]
[1772470507038,1.00323797,89.289,89.251,11.20435625]
[1772470507226,9.16918563,89.28,89.251,11.20435625]
[1772470507428,0.14216157,89.307,89.252,3.27816767]
[1772470507429,1.00323797,89.306,89.252,3.27816767]
[1772470507644,9.16918563,89.3,89.261,3.27816767]
[1772470507831,9.16918563,89.32,89.281,3.27816767]
[1772470508229,1.00323797,89.334,89.281,3.27816767]
[1772470508449,9.16918563,89.33,89.291,3.27816767]
[1772470508741,9.16918563,89.34,89.293,3.27816767]
[1772470508942,1.00324331,89.309,89.264,3.27816767]
[1772470509145,9.16918563,89.29,89.258,3.27816767]
[1772470509328,9.16918563,89.29,89.242,3.27816767]
[1772470509526,9.16918563,89.27,89.242,3.27816767]
[1772470510736,4.82477569,89.317,89.239,0.14739496]
[1772470510737,9.16918563,89.25,89.239,0.14739496]
[1772470511052,9.16918563,89.27,89.239,0.14739496]
[1772470511345,0.28432314,89.284,89.239,0.14739496]
[1772470511740,9.16918563,89.26,89.239,0.14739496]
[1772470512246,9.16918563,89.25,89.239,0.14739496]
[1772470512745,11.20209703,89.269,89.241,3.56508885]
[1772470512948,9.16918563,89.26,89.239,0.14739496]
[1772470513446,39.20733961,89.269,89.23,0.2]
[1772470513447,9.16918563,89.25,89.23,0.2]
[1772470514249,9.16918563,89.26,89.23,0.2]
[1772470514447,9.16918563,89.25,89.23,0.2]
[1772470514846,9.16918563,89.24,89.205,3.56508885]
[1772470515148,39.20821804,89.267,89.205,3.56508885]
[1772470515333,11.20234801,89.267,89.221,3.56508885]
[1772470515848,9.16918563,89.26,89.221,3.56508885]
[1772470516250,9.16918563,89.24,89.193,3.56508885]
[1772470516742,9.16918563,89.24,89.201,3.56508885]
[1772470517064,9.16918563,89.24,89.203,3.56508885]
[1772470517349,9.16918563,89.25,89.203,3.56508885]
[1772470517551,9.16918563,89.25,89.211,3.56508885]
[1772470518456,9.16918563,89.24,89.203,3.56508885]
[1772470518654,9.16918563,89.25,89.211,3.56508885]
[1772470519243,11.20460733,89.249,89.213,3.56508885]
[1772470519935,9.16918563,89.24,89.212,11.20925436]
[1772470520143,11.20460733,89.249,89.213,3.56508885]
[1772470520462,0.28432314,89.219,89.176,3.56508885]
[1772470520760,9.16918563,89.2,89.166,3.56508885]
[1772470520939,3.69383402,89.245,89.16,11.21579183]
[1772470520940,9.16918563,89.19,89.16,11.21579183]
[1772470521146,9.16918563,89.19,89.162,11.21554025]
[1772470521568,9.16918563,89.2,89.163,3.56508885]
[1772470521736,39.5087992,89.23,89.163,3.56508885]
[1772470521737,9.16918563,89.19,89.163,3.56508885]
[1772470522255,9.16918563,89.21,89.163,3.56508885]
[1772470522555,9.16918563,89.21,89.171,3.56508885]
[1772470523133,9.16918563,89.2,89.171,3.56508885]
[1772470523770,9.16918563,89.2,89.172,11.21428251]
[1772470524155,11.21088801,89.199,89.162,31.60393948]
[1772470524471,9.16918563,89.19,89.163,11.21541446]
[1772470524760,11.21088801,89.199,89.163,11.21541446]
[1772470525262,9.16918563,89.2,89.164,3.56508885]
[1772470525640,20.37995873,89.2,89.165,11.2151629]
[1772470525848,9.16918563,89.19,89.165,14.78025175]
[1772470526333,9.16918563,89.2,89.165,42.818159]
[1772470526537,9.16918563,89.21,89.171,3.56508885]
[1772470526971,9.16918563,89.19,89.151,3.56508885]
[1772470527273,9.16918563,89.18,89.14,3.56508885]
[1772470527437,3.69383402,89.211,89.12,14.7859147]
[1772470527438,5.10909883,89.199,89.12,14.7859147]
[1772470527638,9.16918563,89.2,89.107,3.69383402]
[1772470527639,39.26451945,89.139,89.107,3.69383402]
[1772470527854,11.21579183,89.16,89.104,3.56508885]
[1772470528168,9.16918563,89.14,89.104,3.56508885]
[1772470528461,9.16918563,89.14,89.103,3.56508885]
[1772470528670,9.16918563,89.14,89.102,9.60386823]
[1772470528844,9.16918563,89.13,89.102,9.60386823]
[1772470529036,0.28432314,89.159,89.103,3.56508885]
[1772470529358,9.16918563,89.14,89.111,3.56508885]
[1772470529654,9.16918563,89.15,89.111,3.56508885]
[1772470529853,9.16918563,89.16,89.113,3.56508885]
[1772470530059,9.16918563,89.15,89.113,3.56508885]
[1772470531041,9.16918563,89.16,89.113,3.56508885]
[1772470531461,0.28432314,89.17,89.113,3.56508885]
[1772470531762,9.16918563,89.16,89.113,3.56508885]
[1772470532137,39.2513093,89.169,89.114,11.22158134]
[1772470532362,9.16918563,89.16,89.115,3.56508885]
[1772470532659,9.16918563,89.15,89.115,3.56508885]
[1772470532867,0.28432314,89.168,89.102,9.60386823]
[1772470532868,9.16918563,89.14,89.104,3.56508885]
[1772470533052,9.16918563,89.15,89.104,3.56508885]
[1772470533856,9.16918563,89.14,89.104,3.56508885]
[1772470534158,9.16918563,89.15,89.104,3.56508885]
[1772470534461,20.3863087,89.15,89.106,3.56508885]
[1772470534758,9.16918563,89.14,89.106,3.56508885]
[1772470534963,20.3863087,89.15,89.106,3.56508885]
[1772470535665,0.28432314,89.149,89.106,3.56508885]
[1772470535863,0.28432314,89.149,89.102,9.60386823]
[1772470535864,9.16918563,89.13,89.102,9.60386823]
[1772470536243,0.28432314,89.149,89.102,9.60386823]
[1772470536244,11.22095176,89.119,89.102,9.60386823]
[1772470536438,9.16918563,89.11,89.102,5.68329269]
[1772470536844,9.16918563,89.13,89.103,3.56508885]
[1772470537144,0.28432314,89.14,89.102,1e-08]
[1772470537342,0.28432314,89.136,89.085,11.22523432]
[1772470537562,9.16918563,89.12,89.086,3.56508885]
[1772470537765,9.16918563,89.11,89.086,3.56508885]
[1772470538657,0.28432314,89.143,89.084,0.2743145]
[1772470538658,9.16918563,89.1,89.084,0.2743145]
[1772470539163,9.16918563,89.12,89.086,3.56508885]
[1772470539753,9.16918563,89.1,89.084,0.2743145]
[1772470540543,11.22347052,89.099,89.084,0.2743145]
[1772470540750,9.16918563,89.11,89.084,0.2743145]
[1772470541759,9.16918563,89.12,89.086,3.56508885]
[1772470542146,102.7,89.189,89.089,3.56508885]
[1772470542356,9.16918563,89.13,89.091,3.56508885]
[1772470542661,9.16918563,89.12,89.086,3.56508885]
[1772470542868,9.16918563,89.13,89.091,3.56508885]
[1772470543065,9.16918563,89.15,89.111,3.56508885]
[1772470543363,9.16918563,89.13,89.091,3.56508885]
[1772470543548,0.28432314,89.129,89.091,3.56508885]
[1772470543748,9.16918563,89.13,89.091,3.56508885]
[1772470544156,9.16918563,89.15,89.101,3.56508885]
[1772470544357,20.38497746,89.16,89.111,3.56508885]
[1772470544555,20.38497746,89.16,89.113,3.56508885]
[1772470544972,9.16918563,89.18,89.131,3.56508885]
[1772470545748,9.16918563,89.17,89.131,3.56508885]
[1772470546162,9.16918563,89.19,89.141,3.56508885]
[1772470546553,9.16918563,89.18,89.141,3.56508885]
[1772470546756,274.58979642,89.224,89.143,3.56508885]
[1772470546757,11.21239021,89.188,89.143,3.56508885]
[1772470547065,44.81790249,89.251,89.161,3.56508885]
[1772470547066,20.38006621,89.2,89.161,3.56508885]
[1772470547266,11.20963131,89.209,89.161,3.56508885]
[1772470547465,11.20963131,89.209,89.17,9.16918563]
[1772470547671,11.2058629,89.239,89.19,12.73427448]
[1772470547868,9.16918563,89.23,89.19,3.56508885]
[1772470548171,11.2058629,89.239,89.2,12.73427448]
[1772470548356,11.2058629,89.239,89.201,3.56508885]
[1772470548562,39.22052016,89.239,89.19,12.73427448]
[1772470548757,39.22052016,89.239,89.191,14.77698242]
[1772470549091,39.22052016,89.239,89.191,42.80671636]
[1772470549283,11.2058629,89.239,89.2,9.16918563]
[1772470549453,11.2058629,89.239,89.192,3.56508885]
[1772470549654,9.16918563,89.23,89.192,3.56508885]
[1772470549854,9.16918563,89.23,89.181,3.56508885]
[1772470550055,39.22052016,89.239,89.2,9.16918563]
[1772470550056,11.2058629,89.239,89.2,9.16918563]
[1772470550270,0.1,89.24,89.201,3.56508885]
[1772470551068,0.1,89.24,89.203,3.56508885]
[1772470551790,0.1,89.24,89.202,11.21051097]
[1772470552083,9.26918563,89.24,89.202,11.21051097]
[1772470552666,9.26918563,89.24,89.21,6.4]
[1772470553064,0.1,89.24,89.212,3.56508885]
[1772470553455,9.26918563,89.24,89.211,11.20938]
[1772470553878,20.47504618,89.24,89.211,11.20938]
[1772470554368,9.26918563,89.24,89.211,11.20938]
[1772470554575,11.2058629,89.239,89.211,11.20938]
[1772470554971,9.26918563,89.24,89.211,11.20938]
[1772470555280,20.47502469,89.24,89.201,14.7757255]
[1772470555579,0.1,89.24,89.202,3.56508885]
[1772470555777,9.26918563,89.24,89.202,3.56508885]
[1772470556288,0.1,89.24,89.202,3.56508885]
[1772470556663,11.2058629,89.239,89.202,3.56508885]
[1772470556884,9.16918563,89.23,89.192,11.21176787]
[1772470557184,9.26918563,89.24,89.193,3.56508885]
[1772470557478,0.1,89.24,89.211,3.56508885]
[1772470558367,0.1,89.24,89.2,15.36918563]
[1772470558368,11.2058629,89.239,89.201,3.56508885]
[1772470559186,8.14437081,89.24,89.202,11.21051097]
[1772470559385,8.04437081,89.23,89.202,11.21051097]
[1772470559586,19.35010937,89.24,89.203,3.56508885]
[1772470559786,19.35010937,89.24,89.205,3.56508885]
[1772470559787,0.1,89.24,89.205,3.56508885]
[1772470560081,8.14437081,89.24,89.211,3.56508885]
[1772470560285,8.04437081,89.23,89.202,11.21051097]
[1772470560989,0.1,89.24,89.203,3.56508885]
[1772470561178,8.04437081,89.27,89.231,3.56508885]
[1772470562566,8.04437081,89.26,89.221,0.28432314]
[1772470562766,8.04437081,89.25,89.224,3.56508885]
[1772470562977,8.04437081,89.25,89.215,39.231071]
[1772470563203,11.20460733,89.249,89.215,39.231071]
[1772470563496,11.20460733,89.249,89.215,11.20887743]
[1772470563683,11.20460733,89.249,89.216,3.56508885]
[1772470563986,8.04437081,89.26,89.221,3.56508885]
[1772470564192,8.04437081,89.27,89.23,8.04437081]
[1772470564370,8.04437081,89.27,89.231,3.56508885]
[1772470564570,11.20071684,89.28,89.231,3.56508885]
[1772470564571,8.04437081,89.26,89.231,3.56508885]
[1772470565168,8.04437081,89.27,89.233,3.56508885]
[1772470565372,8.04437081,89.26,89.233,3.56508885]
[1772470566288,8.04437081,89.25,89.211,3.84941199]
[1772470566596,8.04437081,89.24,89.212,3.56508885]
[1772470567088,8.04437081,89.25,89.212,3.56508885]
[1772470567291,11.20460733,89.249,89.214,3.56508885]
[1772470567493,11.202599,89.265,89.221,3.56508885]
[1772470567794,8.04437081,89.26,89.221,3.56508885]
[1772470568180,11.202599,89.265,89.225,3.56508885]
[1772470568808,8.04437081,89.27,89.23,8.04437081]
[1772470569091,11.20176522,89.272,89.231,3.56508885]
[1772470569279,36.0463488,89.28,89.23,8.04437081]
[1772470569280,11.2008423,89.279,89.233,3.56508885]
[1772470569890,8.04437081,89.26,89.233,3.56508885]
[1772470570086,39.20294805,89.279,89.228,11.20720858]
[1772470570087,8.04437081,89.25,89.228,11.20720858]
[1772470570291,8.04437081,89.25,89.223,3.56508885]
[1772470570594,8.04437081,89.24,89.22,9.76508885]
[1772470570791,8.04437081,89.24,89.221,3.56508885]
[1772470571192,8.04437081,89.24,89.22,6.2]
[1772470571489,11.2058629,89.239,89.22,6.2]
[1772470573993,8.04437081,89.23,89.211,3.56508885]
[1772470574197,8.04437081,89.22,89.183,3.56508885]
[1772470574493,8.04437081,89.2,89.168,3.56508885]
[1772470574677,8.04437081,89.19,89.168,3.56508885]
[1772470575690,8.04437081,89.19,89.169,11.2146598]
[1772470575879,8.04437081,89.19,89.17,3.56508885]
[1772470576075,8.04437081,89.2,89.17,3.56508885]
[1772470576380,8.04437081,89.19,89.17,3.56508885]
[1772470576996,11.21086985,89.2,89.142,3.56508885]
[1772470576997,8.04437081,89.18,89.142,3.56508885]
[1772470577202,39.23777567,89.2,89.142,3.56508885]
[1772470577203,8.04437081,89.17,89.142,3.56508885]
[1772470577804,11.2146598,89.169,89.144,3.56508885]
[1772470578018,8.04437081,89.17,89.144,3.56508885]
[1772470578304,11.2146598,89.169,89.144,3.56508885]
[1772470578498,8.04437081,89.15,89.134,3.56508885]
[1772470579092,8.04437081,89.15,89.124,3.56508885]
[1772470579491,8.04437081,89.14,89.103,3.56508885]
[1772470579783,8.04437081,89.14,89.105,3.56508885]
[1772470579999,8.04437081,89.18,89.105,3.56508885]
[1772470580000,8.04437081,89.15,89.105,3.56508885]
[1772470580305,8.04437081,89.14,89.105,3.56508885]
[1772470581116,8.04437081,89.15,89.105,3.56508885]
[1772470581335,8.04437081,89.15,89.111,3.56508885]
[1772470581492,11.21491134,89.167,89.104,39.27994253]
[1772470581493,11.21491134,89.167,89.121,3.56508885]
[1772470581819,8.04437081,89.16,89.123,3.56508885]
[1772470582610,8.04437081,89.14,89.112,3.56508885]
[1772470582807,8.04437081,89.14,89.102,3.56508885]
[1772470583587,8.04437081,89.13,89.092,3.56508885]
[1772470583907,11.2196928,89.129,89.093,11.22422637]
[1772470584713,11.2196928,89.129,89.093,14.78931522]
[1772470584897,8.04437081,89.12,89.087,3.56508885]
[1772470585611,39.26892481,89.129,89.087,3.56508885]
[1772470586188,28.04570429,89.141,89.091,3.56508885]
[1772470586406,19.26267908,89.14,89.091,3.56508885]
[1772470586794,8.04437081,89.15,89.111,3.56508885]
[1772470587019,8.04437081,89.14,89.111,3.56508885]
[1772470587400,8.04437081,89.14,89.095,3.56508885]
[1772470587603,8.04437081,89.14,89.1,8.04437081]
[1772470587812,8.04437081,89.14,89.101,3.56508885]
[1772470588508,11.21843413,89.139,89.103,3.56508885]
[1772470588923,11.21795235,89.143,89.103,3.56508885]
[1772470589123,8.04437081,89.14,89.103,3.56508885]
[1772470590328,8.04437081,89.13,89.103,3.56508885]
[1772470590499,11.2196928,89.129,89.103,3.56508885]
[1772470590700,11.2196928,89.129,89.095,3.56508885]
[1772470591126,11.2196928,89.129,89.096,11.22384843]
[1772470591127,39.26892481,89.129,89.096,11.22384843]
[1772470591382,39.26892481,89.129,89.078,28.06508153]
[1772470591383,11.52511176,89.11,89.061,0.95252691]
[1772470591498,8.04437081,89.1,89.061,0.95252691]
[1772470591826,3.48074095,89.089,89.062,11.22813321]
[1772470592002,3.48074095,89.089,89.061,0.95252691]
[1772470592003,8.04437081,89.07,89.041,11.23078132]
[1772470592328,8.04437081,89.08,89.04,11.43078633]
[1772470592621,11.22599041,89.079,89.04,11.43078633]
[1772470593202,8.04437081,89.07,89.04,11.43078633]
[1772470593403,8.04437081,89.07,89.041,3.29156102]
[1772470593729,2.60780503,89.069,89.04,0.2]
[1772470594238,39.29096644,89.079,89.001,3.29156102]
[1772470594239,8.04437081,89.05,89.001,3.29156102]
[1772470594406,8.04437081,89.03,89.003,3.29156102]
[1772470594614,8.04437081,89.02,88.993,3.29156102]
[1772470595140,2.60777014,89.029,88.993,3.29156102]
[1772470595345,8.04437081,89.03,88.993,3.29156102]
[1772470596525,11.23158704,89.035,88.995,3.29156102]
[1772470596847,19.27539012,89.04,89.001,3.29156102]
[1772470597255,8.04437081,89.04,89.001,3.29156102]
[1772470597430,11.23103359,89.039,89.001,3.29156102]
[1772470597623,8.04437081,89.05,89.011,3.29156102]
[1772470598148,8.04437081,89.05,89.01,8.04437081]
[1772470598149,8.04437081,89.06,89.015,3.29156102]
[1772470598322,11.22825928,89.061,89.021,3.29156102]
[1772470598530,8.04437081,89.07,89.031,3.29156102]
[1772470599442,10.64615179,89.05,89.017,11.23369963]
[1772470599824,11.22548634,89.083,89.041,3.29156102]
[1772470600437,2.59985261,89.079,89.041,3.29156102]
[1772470600633,8.04437081,89.08,89.042,11.23065519]
[1772470600634,2.59985261,89.077,89.042,11.23065519]
[1772470603646,8.04437081,89.07,89.031,3.29156102]
[1772470603847,10.63857021,89.07,89.031,3.29156102]
[1772470604042,2.59235812,89.069,89.031,3.29156102]
[1772470605048,44.87475437,89.137,89.041,3.29156102]
[1772470605224,8.04437081,89.1,89.051,3.29156102]
[1772470605427,2.59053799,89.1,89.051,3.29156102]
[1772470605632,11.22296667,89.103,89.061,3.29156102]
[1772470605940,11.22296667,89.103,89.052,39.30287921]
[1772470605941,8.04437081,89.11,89.071,3.29156102]
[1772470606848,2.58873876,89.103,89.061,3.29156102]
[1772470607053,18.74653542,89.105,89.071,3.29156102]
[1772470607363,7.52377133,89.105,89.071,3.29156102]
[1772470607526,7.52377133,89.105,89.072,39.29405424]
[1772470607726,7.52377133,89.105,89.073,3.31723896]
[1772470607958,8.04437081,89.14,89.091,3.31723896]
[1772470608251,8.04437081,89.13,89.091,3.31723896]
[1772470608831,2.58346413,89.139,89.091,3.31723896]
[1772470609033,8.04437081,89.14,89.091,3.31723896]
[1772470609460,8.04437081,89.13,89.091,3.31723896]
[1772470609632,8.04437081,89.13,89.093,3.31723896]
[1772470609947,2.58174615,89.145,89.093,3.31723896]
[1772470610163,8.04437081,89.15,89.11,8.04437081]
[1772470610451,11.21636277,89.156,89.111,3.31723896]
[1772470611164,8.04437081,89.16,89.111,3.31723896]
[1772470611352,8.04437081,89.16,89.092,140.30440441]
[1772470611353,11.21571382,89.161,89.121,3.31723896]
[1772470611527,11.21514086,89.166,89.121,3.31723896]
[1772470611839,11.21514086,89.166,89.092,140.30440441]
[1772470611840,8.04437081,89.18,89.131,3.31723896]
[1772470612045,2.57836917,89.179,89.131,3.31723896]
[1772470612648,39.24602773,89.181,89.131,3.31723896]
[1772470612649,8.04437081,89.18,89.131,3.31723896]
[1772470613255,2.57670971,89.189,89.122,39.27200915]
[1772470613256,11.21263045,89.186,89.141,3.31723896]
[1772470613433,2.57670971,89.189,89.122,95.37487937]
[1772470613434,8.04437081,89.18,89.13,8.04437081]
[1772470613753,11.2146598,89.169,89.133,3.31723896]
[1772470613950,8.04437081,89.16,89.133,3.31723896]
[1772470614355,11.2146598,89.169,89.133,3.31723896]
[1772470615251,11.2146598,89.169,89.135,3.31723896]
[1772470615738,8.04437081,89.15,89.111,3.31723896]
[1772470616132,2.57026032,89.149,89.111,3.31723896]
[1772470616339,95.32460831,89.169,89.101,3.31723896]
[1772470616340,8.04437081,89.13,89.101,3.31723896]
[1772470616552,8.04437081,89.12,89.096,11.2237858]
[1772470616958,8.04437081,89.12,89.049,44.91883235]
[1772470616959,8.04437081,89.11,89.065,3.31723896]
[1772470617261,11.222211,89.109,89.066,11.22762894]
[1772470617438,11.222211,89.109,89.067,3.31723896]
[1772470618356,8.04437081,89.12,89.071,3.31723896]
[1772470618557,19.26529803,89.12,89.081,3.31723896]
[1772470618736,8.04437081,89.14,89.091,3.31723896]
[1772470618936,8.04437081,89.12,89.073,3.31723896]
[1772470619147,8.04437081,89.12,89.071,3.31723896]
[1772470619454,56.08399137,89.152,89.066,39.29670131]
[1772470619455,2.56561513,89.118,89.073,3.31723896]
[1772470619664,8.04437081,89.11,89.073,3.31723896]
[1772470620034,10.60847298,89.11,89.073,3.31723896]
[1772470620252,2.56410217,89.109,89.073,3.31723896]
[1772470620450,3.69383402,89.148,89.072,11.22687264]
[1772470620451,8.06417503,89.13,89.081,3.31723896]
[1772470620638,8.06417503,89.12,89.081,3.31723896]
[1772470620842,8.06417503,89.15,89.101,3.31723896]
[1772470621042,8.06417503,89.15,89.081,1.12257383]
[1772470621043,10.62678161,89.15,89.111,3.31723896]
[1772470621241,8.06417503,89.14,89.111,3.31723896]
[1772470621440,11.21843413,89.139,89.092,3.31723896]
[1772470621657,39.26451945,89.139,89.094,3.31723896]
[1772470623155,11.21843413,89.139,89.094,3.31723896]
[1772470623452,2.55966675,89.176,89.131,3.31723896]
[1772470623658,13.77350194,89.176,89.131,3.31723896]
[1772470623847,11.21264786,89.185,89.141,3.31723896]
[1772470624738,2.55822211,89.194,89.141,3.31723896]
[1772470624942,8.06417503,89.19,89.141,3.31723896]
[1772470625461,11.21214499,89.189,89.152,3.31723896]
[1772470625663,2.55679406,89.205,89.161,3.31723896]
[1772470625842,8.06417503,89.22,89.181,3.31723896]
[1772470626038,11.20837489,89.219,89.181,3.31723896]
[1772470626342,8.06417503,89.21,89.181,3.31723896]
[1772470626541,2.65538241,89.209,89.152,3.31723896]
[1772470626750,2.65538241,89.209,89.161,3.31723896]
[1772470626950,28.01770589,89.23,89.171,3.31723896]
[1772470627137,28.01770589,89.23,89.181,3.31723896]
[1772470627138,8.06417503,89.22,89.181,3.31723896]
[1772470627552,11.20837489,89.219,89.182,11.21302504]
[1772470627750,8.06417503,89.22,89.183,3.31723896]
[1772470627959,11.20837489,89.219,89.183,3.31723896]
[1772470628959,2.65124402,89.209,89.171,3.31723896]
[1772470629159,8.06417503,89.22,89.181,3.31723896]
[1772470629668,8.06417503,89.2,89.167,3.31723896]
[1772470631778,13.86096522,89.209,89.171,3.31723896]
[1772470632060,8.06417503,89.2,89.171,3.31723896]
[1772470632559,8.06417503,89.2,89.151,3.31723896]
[1772470632748,8.06417503,89.19,89.154,3.31723896]
[1772470633941,8.06417503,89.19,89.156,3.31723896]
[1772470634452,11.21088801,89.199,89.156,3.31723896]
[1772470634764,11.21088801,89.199,89.127,3.33622432]
[1772470634765,2.64329659,89.169,89.127,3.33622432]
[1772470634947,8.06417503,89.16,89.127,3.33622432]
[1772470635142,8.06417503,89.14,89.114,3.33622432]
[1772470635343,2.64202182,89.156,89.114,3.33622432]
[1772470635344,8.06417503,89.15,89.114,3.33622432]
[1772470636379,11.21717573,89.149,89.116,3.33622432]
[1772470636554,8.06417503,89.13,89.094,11.22410038]
[1772470636757,8.06417503,89.13,89.095,3.33622432]
[1772470637560,13.8554604,89.149,89.101,3.4694469]
[1772470637747,8.06417503,89.15,89.105,3.4694469]
[1772470637942,8.06417503,89.16,89.121,3.4694469]
[1772470638146,11.21601278,89.159,89.121,3.4694469]
[1772470638343,11.21601278,89.159,89.123,3.4694469]
[1772470639162,8.06417503,89.14,89.111,14.6913782]
[1772470639542,2.63586424,89.148,89.111,14.6913782]
[1772470639952,11.21601278,89.159,89.114,3.4694469]
[1772470640354,11.21601278,89.159,89.116,3.4694469]
[1772470640872,8.06417503,89.16,89.121,3.4694469]
[1772470641047,2.63349908,89.179,89.121,1.12206999]
[1772470641252,8.06417503,89.14,89.113,3.4694469]
[1772470641472,8.06417503,89.14,89.114,11.22158134]
[1772470641653,8.06417503,89.14,89.114,14.69102824]
[1772470642775,8.06417503,89.14,89.115,3.4694469]
[1772470643468,11.21843413,89.139,89.115,3.4694469]
[1772470646273,8.06417503,89.13,89.102,3.4694469]
[1772470646449,2.62781985,89.138,89.084,3.75377004]
[1772470646450,8.06417503,89.12,89.084,3.75377004]
[1772470646775,8.06417503,89.12,89.084,3.4694469]
[1772470646980,8.06417503,89.13,89.084,3.4694469]
[1772470647177,2.62672284,89.148,89.091,3.4694469]
[1772470647472,11.21730156,89.148,89.105,3.4694469]
[1772470648351,8.06417503,89.14,89.105,3.4694469]
[1772470648856,2.62563843,89.139,89.105,3.4694469]
[1772470649159,8.06417503,89.13,89.096,3.4694469]
[1772470649367,11.2196928,89.129,89.097,11.22372245]
[1772470649565,11.2196928,89.129,89.088,11.22482167]
[1772470649566,8.06417503,89.12,89.088,11.22482167]